fUST/lending_fUST_20251210
["ID","MTS","AMOUNT","RATE_DAILY","PERIOD"]
[398022786,1765297846915,-2000.0,0.00018576,7]
[398022787,1765297846927,-1196.0,0.00018595,2]
[398022788,1765297846936,-151.0,0.000186,2]
[398022789,1765297846946,-1060.0,0.0001863,2]
[398022790,1765297846956,-5000.0,0.0001863,2]
[398022791,1765297846966,-500.0,0.0001863,2]
[398022792,1765297846975,-1196.0,0.00018651,2]
[398022793,1765297846985,-1196.0,0.00018698,2]
[398022794,1765297846998,-500.0,0.00018699,10]
[398022795,1765297847008,-500.0,0.00018699,10]
[398022796,1765297847018,-151.0,0.000187,2]
[398022797,1765297847027,-32035.58790413,0.000187,3]
[398022798,1765297847037,-2045.13097215,0.00018719,2]
[398022799,1765297847047,-1196.0,0.00018767,2]
[398022800,1765297847056,-1196.0,0.00018819,2]
[398022801,1765297847067,-500.0,0.00018836,10]
[398022802,1765297847077,-500.0,0.00018836,10]
[398022803,1765297847087,-302.78807261,0.000189,2]
[398022804,1765297847097,-302.75782099,0.000189,2]
[398022805,1765297847108,-1196.0,0.00018909,2]
[398022806,1765297847118,-1196.0,0.00018919,2]
[398022807,1765297847128,-590.37018434,0.00018955,2]
[398022808,1765297847139,-1196.0,0.00018959,2]
[398022809,1765297847149,-500.0,0.00018973,10]
[398022810,1765297847159,-500.0,0.00018973,10]
[398022811,1765297847170,-321676.83170416,0.00019,2]
[398022812,1765297847180,-151.0,0.00019,2]
[398022813,1765297847189,-60903.21742481,0.00019,2]
[398022814,1765297847199,-1196.0,0.00019002,2]
[398022815,1765297847210,-2045.13097215,0.00019052,2]
[398022816,1765297847219,-302.75782099,0.00019089,2]
[398022817,1765297847229,-151.0,0.000191,2]
[398022818,1765297847241,-500.0,0.0001911,10]
[398022819,1765297847251,-500.0,0.0001911,10]
[398022820,1765297847261,-1196.0,0.00019119,2]
[398022821,1765297847270,-500.0,0.00019178,2]
[398022822,1765297847280,-500.0,0.00019178,2]
[398022823,1765297847518,-500.0,0.00019178,2]
[398022824,1765297847529,-500.0,0.00019178,2]
[398022825,1765297847540,-500.0,0.00019178,2]
[398022826,1765297847550,-550.92316218,0.00019178,2]
[398022827,1765297847559,-500.0,0.00019178,2]
[398022828,1765297847572,-500.0,0.00019178,2]
[398022829,1765297847582,-500.0,0.00019178,2]
[398022830,1765297847591,-500.0,0.00019178,2]
[398022831,1765297847601,-500.0,0.00019178,2]
[398022832,1765297847610,-500.0,0.00019178,2]
[398022833,1765297847620,-500.0,0.00019178,2]
[398022834,1765297847630,-500.0,0.00019178,2]
[398022835,1765297847640,-500.0,0.00019178,2]
[398022836,1765297847649,-500.0,0.00019178,2]
[398022837,1765297847660,-500.0,0.00019178,2]
[398022838,1765297847673,-500.0,0.00019178,2]
[398022839,1765297847683,-1160.0,0.00019178,2]
[398022840,1765297847693,-5000.0,0.00019178,2]
[398022841,1765297847702,-5000.0,0.00019178,2]
[398022842,1765297847713,-5000.0,0.00019178,2]
[398022843,1765297847725,-3456.3574305,0.00019178,2]
[398022844,1765297847735,-5500.0,0.00019178,2]
[398022845,1765297847746,-500.0,0.00019178,2]
[398022846,1765297847756,-600.0,0.000192,2]
[398022847,1765297847765,-1196.0,0.00019219,2]
[398022848,1765297847775,-250.0,0.0001924,3]
[398022849,1765297847784,-500.0,0.00019247,10]
[398022850,1765297847793,-500.0,0.00019247,10]
[398022851,1765297847802,-302.75782099,0.00019278,2]
[398022852,1765297847812,-151.0,0.000193,2]
[398022853,1765297847823,-2045.13097215,0.00019314,2]
[398022854,1765297847833,-500.0,0.00019384,10]
[398022855,1765297847842,-500.0,0.00019384,10]
[398022856,1765297847852,-250.0,0.00019396,3]
[398022857,1765297847861,-302.75782099,0.00019467,2]
[398022858,1765297847871,-250.0,0.000195,3]
[398022859,1765297847881,-500.0,0.00019521,10]
[398022860,1765297847890,-500.0,0.00019521,10]
[398022861,1765297847900,-1196.0,0.00019525,2]
[398022862,1765297847910,-2045.13097215,0.00019581,2]
[398022863,1765297847919,-823.08976841,0.000196,2]
[398022864,1765297847929,-250.0,0.00019604,3]
[398022865,1765297847940,-168.0,0.00019644,3]
[398022866,1765297847952,-302.75782099,0.00019656,2]
[398022867,1765297847962,-500.0,0.00019658,10]
[398022868,1765297847972,-500.0,0.00019658,10]
[398022869,1765297847984,-250.0,0.00019707,3]
[398022870,1765297847995,-1260.0,0.00019726,2]
[398022871,1765297848006,-6000.0,0.00019726,2]
[398022872,1765297848016,-511.28,0.00019726,2]
[398022873,1765297848026,-2045.13097219,0.00019785,2]
[398022874,1765297848036,-500.0,0.00019795,10]
[398022875,1765297848045,-500.0,0.00019795,10]
[398022876,1765297848055,-151.0,0.000198,2]
[398022877,1765297848065,-250.0,0.00019811,3]
[398022878,1765297848075,-250.0,0.00019844,3]
[398022879,1765297848086,-302.56118574,0.00019845,4]
[398022880,1765297848095,-1580.358591,0.0001986,5]
[398022881,1765297848105,-1000.0,0.0001988,5]
[398022882,1765297848115,-250.0,0.00019899,3]
[398022883,1765297848124,-1000.0,0.000199,5]
[398022884,1765297848134,-250.0,0.00019915,3]
[398022885,1765297848143,-1000.0,0.0001992,5]
[398022886,1765297848154,-189.74100415,0.00019932,10]
[398022887,1765297848164,-500.0,0.00019932,10]
[398022888,1765297848174,-1000.0,0.0001994,5]
[398022889,1765297848185,-1000.0,0.0001996,10]
[398022890,1765297848194,-1000.0,0.0001996,10]
[398022891,1765297848204,-1000.0,0.0001996,10]
[398022892,1765297848213,-1000.0,0.0001996,5]
[398022893,1765297848223,-250.0,0.00019979,3]
[398022894,1765297848233,-1000.0,0.0001998,5]
[398022895,1765297848244,-250.0,0.00019998,3]
[398022896,1765297848254,-2579.17784983,0.00019998,3]
[398022897,1765297848264,-533.88981491,0.00019998,3]
[398022898,1765297848274,-631.82934836,0.00019998,3]
[398022899,1765297848284,-553.64373807,0.00019998,3]
[398022900,1765297848293,-500.0,0.00019998,3]
[398022901,1765297848302,-574.12855637,0.00019998,3]
[398022902,1765297848312,-500.0,0.00019998,3]
[398022903,1765297848322,-595.37131296,0.00019998,3]
[398022904,1765297848334,-278.27319557,0.00019998,3]
[398022905,1765297848345,-617.40005154,0.00019998,3]
[398022906,1765297848356,-640.24385345,0.00019998,3]
[398022907,1765297848366,-154.26137292,0.00019998,3]
[398022908,1765297848376,-663.93287602,0.00019998,3]
[398022909,1765297848385,-688.49839244,0.00019998,3]
[398022910,1765297848395,-713.97283296,0.00019998,3]
[398022911,1765297848404,-484.29175519,0.00019998,3]
[398022912,1765297848413,-740.38982778,0.00019998,3]
[398022913,1765297848423,-767.7842514,0.00019998,3]
[398022914,1765297848432,-796.19226871,0.00019998,3]
[398022915,1765297848442,-825.65138265,0.00019998,3]
[398022916,1765297848451,-151.0,0.00019998,3]
[398022917,1765297848461,-250.0,0.00019999,2]
[398022918,1765297848470,-250.0,0.00019999,3]
[398022919,1765297848485,-934.8022385,0.0002,7]
[398022920,1765297848496,-150.0,0.0002,3]
[398022921,1765297848506,-895.0,0.0002,2]
[398022922,1765297848516,-9999.999999,0.0002,7]
[398022923,1765297848526,-347.78309625,0.0002,30]
[398022924,1765297848536,-159.0,0.0002,30]
[398022925,1765297848546,-95978.02281488,0.0002,2]
[398022926,1765297848556,-201.87610237,0.0002,2]
[398022927,1765297848567,-159.22180347,0.0002,2]
[398022928,1765297848576,-4960.92054255,0.0002,30]
[398022929,1765297848586,-222.0,0.0002,30]
[398022930,1765297848595,-7111.67998874,0.0002,2]
[398022931,1765297848605,-3533.13,0.0002,2]
[398022932,1765297848614,-3319.83,0.0002,2]
[398022933,1765297848624,-7045.53,0.0002,2]
[398022934,1765297848633,-150.0,0.0002,2]
[398022935,1765297848643,-347.30356795,0.0002,7]
[398022936,1765297848653,-151.0,0.0002,2]
[398022937,1765297848664,-1000.0,0.0002,5]
[398022938,1765297848673,-2000.0,0.0002,2]
[398022939,1765297848683,-305.848,0.0002,2]
[398022940,1765297848693,-514.474,0.0002,2]
[398022941,1765297848702,-1000.0,0.0002,2]
[398022942,1765297848712,-1000.0,0.0002,2]
[398022943,1765297848726,-1000.0,0.0002,2]
[398022944,1765297848735,-1000.0,0.0002,2]
[398022945,1765297848746,-1000.0,0.0002,2]
[398022946,1765297848755,-1000.0,0.0002,2]
[398022947,1765297848767,-1000.0,0.0002,2]
[398022948,1765297848787,-1000.0,0.0002,2]
[398022949,1765297848798,-1000.0,0.0002,2]
[398022950,1765297848815,-178.466,0.0002,2]
[398022951,1765297848833,-475.0,0.0002,2]
[398022952,1765297848845,-475.0,0.0002,2]
[398022953,1765297848855,-475.0,0.0002,2]
[398022954,1765297848864,-475.0,0.0002,2]
[398022955,1765297848874,-475.0,0.0002,2]
[398022956,1765297848884,-475.0,0.0002,2]
[398022957,1765297848894,-475.0,0.0002,2]
[398022958,1765297848905,-475.0,0.0002,2]
[398022959,1765297848914,-475.0,0.0002,2]
[398022960,1765297848924,-475.0,0.0002,2]
[398022961,1765297848934,-475.0,0.0002,2]
[398022962,1765297848943,-475.0,0.0002,2]
[398022963,1765297848953,-475.0,0.0002,2]
[398022964,1765297848963,-475.0,0.0002,2]
[398022965,1765297848972,-475.0,0.0002,2]
[398022966,1765297848983,-475.0,0.0002,2]
[398022967,1765297848993,-475.0,0.0002,2]
[398022968,1765297849004,-475.0,0.0002,2]
[398022969,1765297849013,-475.0,0.0002,2]
[398022970,1765297849023,-475.0,0.0002,2]
[398022971,1765297849032,-475.0,0.0002,2]
[398022972,1765297849041,-475.0,0.0002,2]
[398022973,1765297849051,-475.0,0.0002,2]
[398022974,1765297849060,-475.0,0.0002,2]
[398022975,1765297849069,-475.0,0.0002,2]
[398022976,1765297849079,-475.0,0.0002,2]
[398022977,1765297849088,-475.0,0.0002,2]
[398022978,1765297849098,-1000.0,0.0002,2]
[398022979,1765297849107,-250.0,0.0002,10]
[398022980,1765297849116,-150.0,0.0002,2]
[398022981,1765297849126,-151.36378773,0.0002,2]
[398022982,1765297849136,-150.0,0.0002,2]
[398022983,1765297849146,-1467.3117518,0.00020019,31]
[398022984,1765297849156,-198.36489375,0.00020069,10]
[398022985,1765297849165,-1500.0,0.000201,2]
[398022986,1765297849177,-1500.0,0.000201,2]
[398022987,1765297849188,-1500.0,0.000201,2]
[398022988,1765297849198,-1500.0,0.000201,2]
[398022989,1765297849207,-1500.0,0.000201,2]
[398022990,1765297849217,-1500.0,0.000201,2]
[398022991,1765297849227,-1500.0,0.000201,2]
[398022992,1765297849236,-1500.0,0.000201,2]
[398022993,1765297849248,-1500.0,0.000201,2]
[398022994,1765297849257,-1500.0,0.000201,2]
[398022995,1765297849268,-1000.0,0.000201,2]
[398022996,1765297849278,-1055.24,0.000201,2]
[398022997,1765297849287,-250.0,0.000201,10]
[398022998,1765297849297,-356.157462,0.000201,2]
[398022999,1765297849306,-151.0,0.000201,2]
[398023000,1765297849316,-356.157462,0.000201,2]
[398023001,1765297849326,-356.157462,0.000201,2]
[398023002,1765297849336,-356.157462,0.000201,2]
[398023003,1765297849346,-381.563495,0.000201,2]
[398023004,1765297849356,-381.563495,0.000201,2]
[398023005,1765297849366,-381.563495,0.000201,2]
[398023006,1765297849375,-151.0,0.000201,2]
[398023007,1765297849385,-381.563495,0.000201,2]
[398023008,1765297849394,-151.0,0.000201,2]
[398023009,1765297849404,-151.0,0.000201,2]
[398023010,1765297849414,-215.368,0.000201,2]
[398023011,1765297849423,-161.184916,0.000201,2]
[398023012,1765297849432,-215.368,0.000201,2]
[398023013,1765297849443,-215.368,0.000201,2]
[398023014,1765297849452,-215.368,0.000201,2]
[398023015,1765297849463,-409.17794,0.000201,2]
[398023016,1765297849473,-409.17794,0.000201,2]
[398023017,1765297849483,-409.17794,0.000201,2]
[398023018,1765297849495,-409.17794,0.000201,2]
[398023019,1765297849504,-151.0,0.000201,2]
[398023020,1765297849514,-151.0,0.000201,2]
[398023021,1765297849523,-196.238409,0.000201,2]
[398023022,1765297849532,-196.238409,0.000201,2]
[398023023,1765297849542,-202.13816,0.000201,2]
[398023024,1765297849551,-196.238409,0.000201,2]
[398023025,1765297849561,-202.13816,0.000201,2]
[398023026,1765297849571,-196.238409,0.000201,2]
[398023027,1765297849580,-202.13816,0.000201,2]
[398023028,1765297849589,-202.13816,0.000201,2]
[398023029,1765297849598,-1467.3117518,0.00020123,35]
[398023030,1765297849607,-475.0,0.00020125,2]
[398023031,1765297849617,-277.11719284,0.0002013,2]
[398023032,1765297849626,-201.87610237,0.00020157,9]
[398023033,1765297849636,-1500.0,0.00020187,2]
[398023034,1765297849645,-2697.12,0.000202,2]
[398023035,1765297849655,-250.0,0.000202,10]
[398023036,1765297849664,-1467.3117518,0.00020227,39]
[398023037,1765297849674,-6500.0,0.00020274,2]
[398023038,1765297849683,-1360.0,0.00020274,2]
[398023039,1765297849693,-2856.78793108,0.000203,2]
[398023040,1765297849703,-250.0,0.000203,10]
[398023041,1765297849713,-201.87610237,0.00020314,17]
[398023042,1765297849724,-159.22180347,0.00020314,17]
[398023043,1765297849734,-1467.3117518,0.0002033,42]
[398023044,1765297849745,-250.0,0.000204,10]
[398023045,1765297849754,-1467.3117518,0.00020434,46]
[398023046,1765297849763,-287.23760813,0.0002045,30]
[398023047,1765297849772,-201.87610237,0.00020471,25]
[398023048,1765297849782,-26800.0,0.000205,2]
[398023049,1765297849792,-161.54430577,0.000205,14]
[398023050,1765297849802,-250.0,0.000205,10]
[398023051,1765297849811,-560.964267,0.000205,2]
[398023052,1765297849821,-560.964267,0.000205,2]
[398023053,1765297849830,-560.964267,0.000205,2]
[398023054,1765297849840,-151.0,0.000205,2]
[398023055,1765297849850,-560.964267,0.000205,2]
[398023056,1765297849859,-151.0,0.000205,2]
[398023057,1765297849868,-172.659327,0.000205,2]
[398023058,1765297849878,-151.0,0.000205,2]
[398023059,1765297849889,-172.659327,0.000205,2]
[398023060,1765297849898,-151.0,0.000205,2]
[398023061,1765297849908,-172.659327,0.000205,2]
[398023062,1765297849918,-151.0,0.000205,2]
[398023063,1765297849927,-172.659327,0.000205,2]
[398023064,1765297849938,-151.0,0.000205,2]
[398023065,1765297849947,-151.800982,0.000205,2]
[398023066,1765297849957,-250.066685,0.000205,2]
[398023067,1765297849967,-250.066685,0.000205,2]
[398023068,1765297849977,-250.066685,0.000205,2]
[398023069,1765297849987,-151.0,0.000205,2]
[398023070,1765297849997,-250.066685,0.000205,2]
[398023071,1765297850006,-151.547957,0.000205,2]
[398023072,1765297850015,-174.867089,0.000205,2]
[398023073,1765297850023,-151.0,0.000205,2]
[398023074,1765297850033,-174.867089,0.000205,2]
[398023075,1765297850043,-151.0,0.000205,2]
[398023076,1765297850052,-151.0,0.000205,2]
[398023077,1765297850061,-174.867089,0.000205,2]
[398023078,1765297850071,-151.0,0.000205,2]
[398023079,1765297850080,-174.867089,0.000205,2]
[398023080,1765297850090,-151.0,0.000205,2]
[398023081,1765297850099,-196.215346,0.000205,2]
[398023082,1765297850109,-151.0,0.000205,2]
[398023083,1765297850118,-259.325539,0.000205,2]
[398023084,1765297850127,-151.0,0.000205,2]
[398023085,1765297850137,-259.325539,0.000205,2]
[398023086,1765297850148,-259.325539,0.000205,2]
[398023087,1765297850158,-151.0,0.000205,2]
[398023088,1765297850168,-259.325539,0.000205,2]
[398023089,1765297850177,-151.0,0.000205,2]
[398023090,1765297850187,-151.0,0.000205,2]
[398023091,1765297850196,-151.0,0.000205,2]
[398023092,1765297850205,-176.537843,0.000205,2]
[398023093,1765297850214,-176.537843,0.000205,2]
[398023094,1765297850223,-176.537843,0.000205,2]
[398023095,1765297850234,-176.537843,0.000205,2]
[398023096,1765297850244,-151.0,0.000205,2]
[398023097,1765297850253,-603.896021,0.000205,2]
[398023098,1765297850262,-603.896021,0.000205,2]
[398023099,1765297850271,-603.896021,0.000205,2]
[398023100,1765297850281,-603.896021,0.000205,2]
[398023101,1765297850291,-151.0,0.000205,2]
[398023102,1765297850300,-151.0,0.000205,2]
[398023103,1765297850309,-151.0,0.000205,2]
[398023104,1765297850319,-151.0,0.000205,2]
[398023105,1765297850328,-222.495628,0.000205,2]
[398023106,1765297850337,-151.0,0.000205,2]
[398023107,1765297850346,-151.0,0.000205,2]
[398023108,1765297850355,-222.495628,0.000205,2]
[398023109,1765297850364,-151.0,0.000205,2]
[398023110,1765297850373,-151.0,0.000205,2]
[398023111,1765297850383,-222.495628,0.000205,2]
[398023112,1765297850392,-151.0,0.000205,2]
[398023113,1765297850401,-202.471472,0.000205,2]
[398023114,1765297850410,-222.495628,0.000205,2]
[398023115,1765297850418,-1467.3117518,0.00020538,50]
[398023116,1765297850427,-151.0,0.00020538,2]
[398023117,1765297850436,-151.935492,0.00020538,2]
[398023118,1765297850446,-151.0,0.00020538,2]
[398023119,1765297850455,-202.590626,0.00020538,2]
[398023120,1765297850465,-151.0,0.00020538,2]
[398023121,1765297850474,-202.590626,0.00020538,2]
[398023122,1765297850483,-202.590626,0.00020538,2]
[398023123,1765297850492,-202.590626,0.00020538,2]
[398023124,1765297850502,-160.9673,0.00020538,2]
[398023125,1765297850511,-160.9673,0.00020538,2]
[398023126,1765297850519,-160.9673,0.00020538,2]
[398023127,1765297850528,-160.9673,0.00020538,2]
[398023128,1765297850537,-251.953447,0.00020538,2]
[398023129,1765297850546,-251.953447,0.00020538,2]
[398023130,1765297850555,-251.953447,0.00020538,2]
[398023131,1765297850564,-251.953447,0.00020538,2]
[398023132,1765297850573,-151.0,0.00020538,2]
[398023133,1765297850582,-151.0,0.00020538,2]
[398023134,1765297850591,-151.0,0.00020538,2]
[398023135,1765297850600,-516.771041,0.00020548,2]
[398023136,1765297850609,-250.0,0.000206,10]
[398023137,1765297850618,-1383.49637782,0.0002061,2]
[398023138,1765297850627,-201.87610237,0.00020628,32]
[398023139,1765297850636,-159.22180347,0.00020628,32]
[398023140,1765297850646,-1467.3117518,0.00020641,54]
[398023141,1765297850655,-210.66922649,0.00020693,56]
[398023142,1765297850664,-251.92696344,0.00020693,56]
[398023143,1765297850673,-32035.56,0.000207,3]
[398023144,1765297850682,-151.0,0.000207,2]
[398023145,1765297850691,-151.0,0.000207,2]
[398023146,1765297850699,-151.0,0.000207,2]
[398023147,1765297850708,-280.64243,0.000207,2]
[398023148,1765297850722,-151.0,0.000207,2]
[398023149,1765297850732,-151.0,0.000207,2]
[398023150,1765297850742,-151.0,0.000207,2]
[398023151,1765297850751,-151.0,0.000207,2]
[398023152,1765297850762,-151.0,0.000207,2]
[398023153,1765297850771,-151.0,0.000207,2]
[398023154,1765297850781,-151.0,0.000207,2]
[398023155,1765297850791,-151.0,0.000207,2]
[398023156,1765297850802,-151.0,0.000207,2]
[398023157,1765297850811,-151.0,0.000207,2]
[398023158,1765297850821,-151.0,0.000207,2]
[398023159,1765297850830,-151.0,0.000207,2]
[398023160,1765297850839,-168.904745,0.000207,2]
[398023161,1765297850848,-168.904745,0.000207,2]
[398023162,1765297850857,-168.904745,0.000207,2]
[398023163,1765297850866,-168.904745,0.000207,2]
[398023164,1765297850875,-233.616259,0.000207,2]
[398023165,1765297850884,-233.616259,0.000207,2]
[398023166,1765297850893,-233.616259,0.000207,2]
[398023167,1765297850904,-151.0,0.000207,2]
[398023168,1765297850914,-151.0,0.000207,2]
[398023169,1765297850923,-233.616259,0.000207,2]
[398023170,1765297850933,-151.0,0.000207,2]
[398023171,1765297850943,-151.0,0.000207,2]
[398023172,1765297850952,-151.0,0.000207,2]
[398023173,1765297850963,-610.590459,0.000207,2]
[398023174,1765297850972,-151.0,0.000207,2]
[398023175,1765297850982,-610.590459,0.000207,2]
[398023176,1765297850992,-151.0,0.000207,2]
[398023177,1765297851001,-610.590459,0.000207,2]
[398023178,1765297851012,-151.0,0.000207,2]
[398023179,1765297851022,-610.590459,0.000207,2]
[398023180,1765297851032,-151.0,0.000207,2]
[398023181,1765297851041,-193.207712,0.000207,2]
[398023182,1765297851051,-151.0,0.000207,2]
[398023183,1765297851061,-193.207712,0.000207,2]
[398023184,1765297851072,-151.0,0.000207,2]
[398023185,1765297851081,-193.207712,0.000207,2]
[398023186,1765297851091,-193.207712,0.000207,2]
[398023187,1765297851102,-151.0,0.000207,2]
[398023188,1765297851111,-151.0,0.000207,2]
[398023189,1765297851121,-151.0,0.000207,2]
[398023190,1765297851132,-151.0,0.000207,2]
[398023191,1765297851142,-151.000288,0.000207,2]
[398023192,1765297851152,-151.0,0.000207,2]
[398023193,1765297851162,-151.0,0.000207,2]
[398023194,1765297851171,-151.0,0.000207,2]
[398023195,1765297851182,-151.0,0.000207,2]
[398023196,1765297851192,-151.0,0.000207,2]
[398023197,1765297851202,-151.0,0.000207,2]
[398023198,1765297851211,-151.0,0.000207,2]
[398023199,1765297851220,-151.0,0.000207,2]
[398023200,1765297851231,-151.0,0.000207,2]
[398023201,1765297851241,-151.0,0.000207,2]
[398023202,1765297851251,-365.894645,0.000207,2]
[398023203,1765297851260,-365.894645,0.000207,2]
[398023204,1765297851269,-365.894645,0.000207,2]
[398023205,1765297851279,-365.894645,0.000207,2]
[398023206,1765297851288,-151.0,0.000207,2]
[398023207,1765297851297,-151.0,0.000207,2]
[398023208,1765297851306,-508.260792,0.000207,2]
[398023209,1765297851318,-508.260792,0.000207,2]
[398023210,1765297851328,-508.260792,0.000207,2]
[398023211,1765297851338,-508.260792,0.000207,2]
[398023212,1765297851347,-151.0,0.000207,2]
[398023213,1765297851356,-220.120643,0.000207,2]
[398023214,1765297851366,-220.120643,0.000207,2]
[398023215,1765297851375,-220.120643,0.000207,2]
[398023216,1765297851386,-220.120643,0.000207,2]
[398023217,1765297851395,-151.0,0.000207,2]
[398023218,1765297851404,-151.0,0.000207,2]
[398023219,1765297851414,-250.0,0.000207,10]
[398023220,1765297851423,-151.0,0.000207,2]
[398023221,1765297851433,-296.082624,0.000207,2]
[398023222,1765297851442,-168.53538119,0.00020719,56]
[398023223,1765297851452,-1467.3117518,0.00020745,57]
[398023224,1765297851462,-201.87610237,0.00020784,40]
[398023225,1765297851472,-250.0,0.000208,10]
[398023226,1765297851483,-7000.0,0.00020822,2]
[398023227,1765297851496,-1460.0,0.00020822,2]
[398023228,1765297851506,-1467.3117518,0.00020849,61]
[398023229,1765297851516,-255.33522622,0.000209,2]
[398023230,1765297851526,-151.0,0.000209,3]
[398023231,1765297851536,-151.0,0.000209,3]
[398023232,1765297851545,-151.0,0.000209,4]
[398023233,1765297851555,-250.0,0.000209,10]
[398023234,1765297851564,-201.87610237,0.00020941,48]
[398023235,1765297851574,-159.22180347,0.00020941,48]
[398023236,1765297851583,-1467.3117518,0.00020952,65]
[398023237,1765297851593,-641.45991183,0.00020955,2]
[398023238,1765297851797,-151.0,0.00020959,2]
[398023239,1765297851808,-151.0,0.00020959,2]
[398023240,1765297851818,-151.0,0.00020959,2]
[398023241,1765297851828,-151.0,0.00020959,2]
[398023242,1765297851838,-248.267728,0.00020959,2]
[398023243,1765297851848,-248.267728,0.00020959,2]
[398023244,1765297851858,-248.267728,0.00020959,2]
[398023245,1765297851869,-248.267728,0.00020959,2]
[398023246,1765297851879,-276.15374923,0.00021,2]
[398023247,1765297851889,-50000.0,0.00021,2]
[398023248,1765297851900,-323.0,0.00021,3]
[398023249,1765297851910,-3036.75616037,0.00021,2]
[398023250,1765297851920,-3000.0,0.00021,2]
[398023251,1765297851930,-500.49,0.00021,2]
[398023252,1765297851940,-10000.0,0.00021,5]
[398023253,1765297851949,-77794.21931741,0.00021,2]
[398023254,1765297851959,-3000.0,0.00021,2]
[398023255,1765297851968,-7045.53,0.00021,2]
[398023256,1765297851978,-280.112833,0.00021,2]
[398023257,1765297851988,-280.112833,0.00021,2]
[398023258,1765297851999,-280.112833,0.00021,2]
[398023259,1765297852009,-280.112833,0.00021,2]
[398023260,1765297852020,-291.943704,0.00021,2]
[398023261,1765297852031,-291.943704,0.00021,2]
[398023262,1765297852041,-291.943704,0.00021,2]
[398023263,1765297852051,-291.943704,0.00021,2]
[398023264,1765297852062,-151.0,0.00021,2]
[398023265,1765297852072,-151.0,0.00021,2]
[398023266,1765297852081,-151.0,0.00021,2]
[398023267,1765297852091,-422.590346,0.00021,2]
[398023268,1765297852101,-422.590346,0.00021,2]
[398023269,1765297852111,-422.590346,0.00021,2]
[398023270,1765297852121,-422.590346,0.00021,2]
[398023271,1765297852130,-250.0,0.00021,10]
[398023272,1765297852140,-150.0,0.00021,2]
[398023273,1765297852150,-196.238409,0.00021,2]
[398023274,1765297852161,-196.238409,0.00021,2]
[398023275,1765297852171,-202.13816,0.00021,2]
[398023276,1765297852181,-196.238409,0.00021,2]
[398023277,1765297852190,-202.13816,0.00021,2]
[398023278,1765297852200,-196.238409,0.00021,2]
[398023279,1765297852210,-202.13816,0.00021,2]
[398023280,1765297852221,-202.13816,0.00021,2]
[398023281,1765297852231,-3000.0,0.0002101,2]
[398023282,1765297852242,-3000.0,0.0002102,2]
[398023283,1765297852253,-356.157462,0.0002102,2]
[398023284,1765297852263,-151.0,0.0002102,2]
[398023285,1765297852272,-356.157462,0.0002102,2]